bitfinex-derivatives/quotes_ETHF0:USTF0_20240915
["timestamp","ask_amount","ask_price","bid_price","bid_amount"]
[1726390690296,5.37266573,2416.9,2416.8,4.44260777]
[1726390690496,5.37266573,2416.9,2416.8,3.46562743]
[1726390690696,5.37266573,2416.9,2416.8,2.67346798]
[1726390690903,5.37266573,2416.9,2416.8,5.0532395]
[1726390691506,7.1012303,2416.9,2416.8,1.95570344]
[1726390693000,7.1012303,2416.9,2416.8,1.95571075]
[1726390694002,7.1012303,2416.9,2416.7,1.48196848]
[1726390694003,3.8934303,2416.9,2416.7,1.48196848]
[1726390694207,5.77323461,2416.8,2416.7,1.48196848]
[1726390694515,2.56543461,2416.8,2416.7,3.06958507]
[1726390694714,2.56543461,2416.8,2416.7,5.44938725]
[1726390694715,5.77323461,2416.8,2416.7,5.44938725]
[1726390696204,2.56543461,2416.8,2416.7,5.44938725]
[1726390697012,5.77323461,2416.8,2416.7,5.44938725]
[1726390697207,5.77323461,2416.8,2416.7,2.45896354]
[1726390697414,2.56543461,2416.8,2416.7,2.45896354]
[1726390697636,5.77323461,2416.8,2416.7,2.87264354]
[1726390697817,5.77323461,2416.8,2416.7,4.19713124]
[1726390698211,5.77323461,2416.8,2416.7,3.78345124]
[1726390698714,5.77323461,2416.8,2416.7,3.41707145]
[1726390699014,5.77323461,2416.8,2416.7,6.16320377]
[1726390699215,5.77323461,2416.8,2416.7,6.16320288]
[1726390699417,5.77323461,2416.8,2416.7,6.7738176]
[1726390699608,5.77323461,2416.8,2416.7,9.15357736]
[1726390700006,2.56543461,2416.8,2416.7,9.15357736]
[1726390700210,5.77323461,2416.8,2416.7,9.15357736]
[1726390701414,2.56543461,2416.8,2416.7,9.56725736]
[1726390701614,5.77323461,2416.8,2416.7,9.56725736]
[1726390702320,5.77323461,2416.8,2416.7,8.59027836]
[1726390702513,2.56543461,2416.8,2416.7,7.97970471]
[1726390702714,5.77323461,2416.8,2416.7,9.56731385]
[1726390703019,2.56543461,2416.8,2416.7,7.97970471]
[1726390703215,5.77323461,2416.8,2416.7,9.56731349]
[1726390704123,2.56543461,2416.8,2416.7,9.56731349]
[1726390705617,5.77323461,2416.8,2416.7,9.56731349]
[1726390706016,2.56543461,2416.8,2416.7,9.56731349]
[1726390706533,5.77323461,2416.8,2416.7,9.56731349]
[1726390707021,2.56543461,2416.8,2416.7,9.56731349]
[1726390707228,5.77323461,2416.8,2416.7,9.56731349]
[1726390707438,5.77323461,2416.8,2416.7,9.56748751]
[1726390707725,2.56543461,2416.8,2416.7,9.56748751]
[1726390707926,5.77323461,2416.8,2416.7,9.56748751]
[1726390708725,5.77323461,2416.8,2416.7,8.48161903]
[1726390708943,5.77323461,2416.8,2416.7,6.10185588]
[1726390709726,2.56543461,2416.8,2416.7,6.10185588]
[1726390709929,5.77323461,2416.8,2416.7,4.73929704]
[1726390710225,5.77323461,2416.8,2416.7,7.72970277]
[1726390711223,2.56543461,2416.8,2416.7,7.72970277]
[1726390711425,5.77323461,2416.8,2416.7,7.72970277]
[1726390713422,5.77323461,2416.8,2416.7,6.40499543]
[1726390713922,5.77323461,2416.8,2416.7,4.7771757]
[1726390713923,3.6091,2416.8,2416.7,4.7771757]
[1726390714223,3.6091,2416.8,2416.7,4.77716395]
[1726390714920,3.6091,2416.8,2416.7,6.40610287]
[1726390715227,5.77406939,2416.8,2416.7,7.73106813]
[1726390715727,5.77406939,2416.8,2416.7,6.40610287]
[1726390716427,5.77406939,2416.8,2416.7,6.40609475]
[1726390716929,2.56626939,2416.8,2416.7,4.02631587]
[1726390717114,5.77406939,2416.8,2416.7,6.40608302]
[1726390718027,2.56626939,2416.8,2416.7,6.40609843]
[1726390718329,5.77406939,2416.8,2416.7,6.40609843]
[1726390719032,2.56626939,2416.8,2416.7,6.40609843]
[1726390719423,5.77406939,2416.8,2416.7,7.62733247]
[1726390719826,5.77406939,2416.8,2416.7,6.40609843]
[1726390720528,5.77406939,2416.8,2416.7,2.43871892]
[1726390720720,5.77406939,2416.8,2416.7,4.02633523]
[1726390720919,5.77406939,2416.8,2416.7,6.40614169]
[1726390722529,5.77406939,2416.8,2416.7,7.33506256]
[1726390722726,6.17766939,2416.8,2416.7,7.33506256]
[1726390723528,2.96986939,2416.8,2416.7,7.33506256]
[1726390723828,6.17766939,2416.8,2416.7,7.33506256]
[1726390724030,2.96986939,2416.8,2416.7,4.95525567]
[1726390724332,6.17766939,2416.8,2416.7,5.33376353]
[1726390724631,6.17766939,2416.8,2416.7,6.92138915]
[1726390725533,6.17766939,2416.8,2416.7,6.92138374]
[1726390726432,2.96986939,2416.8,2416.7,6.92138374]
[1726390726620,6.17766939,2416.8,2416.7,6.92138374]
[1726390726821,7.36766939,2416.8,2416.7,6.92138374]
[1726390727042,5.2027,2416.8,2416.7,5.59636287]
[1726390727327,9.75396,2416.8,2416.7,3.58466756]
[1726390727535,15.75396,2416.8,2416.7,1.3451034]
[1726390727729,0.41369,2416.7,2416.3,1.2776473]
[1726390727929,5.37096796,2416.4,2416.3,1.1816473]
[1726390728126,5.37096796,2416.4,2416.3,2.5117109]
[1726390728327,6.57336796,2416.4,2416.3,3.0869474]
[1726390728526,6.57336796,2416.4,2416.3,2.05205417]
[1726390730439,4.4102,2416.4,2416.3,2.05205417]
[1726390730739,6.57336796,2416.4,2416.3,1.44136458]
[1726390730940,6.57336796,2416.4,2416.3,0.096]
[1726390731138,6.57336796,2416.4,2416.3,1.44142229]
[1726390731438,6.57336796,2416.4,2416.3,0.61347011]
[1726390732634,4.4102,2416.4,2416.3,0.61347011]
[1726390732828,10.71176796,2416.4,2416.3,0.61347011]
[1726390733429,8.5486,2416.4,2416.3,0.61347011]
[1726390734535,5.3408,2416.4,2416.3,0.61347551]
[1726390734837,1.2024,2416.4,2416.3,0.61347551]
[1726390735038,5.3408,2416.4,2416.3,0.61347551]
[1726390735238,5.3408,2416.4,2416.3,0.096]
[1726390735442,10.16786006,2416.4,2416.3,0.096]
[1726390735937,10.58159006,2416.4,2416.3,0.096]
[1726390736139,11.12114992,2416.4,2416.3,0.096]
[1726390736346,8.96233,2416.4,2416.3,0.096]
[1726390737540,11.12012551,2416.4,2416.3,0.096]
[1726390739840,11.12012551,2416.4,2416.0,0.096]
[1726390739841,0.41378,2416.2,2416.0,0.096]
[1726390740140,6.42500095,2416.1,2415.9,0.3977]
[1726390740335,7.22840095,2416.1,2415.9,0.3977]
[1726390741143,5.6107,2416.1,2415.9,0.3977]
[1726390744355,5.2163,2416.1,2415.9,0.3977]
[1726390745444,3.2078,2416.1,2415.9,0.3977]
[1726390747255,3.2078,2416.1,2415.9,0.81151]
[1726390750250,1.5705,2416.3,2415.9,1.5877]
[1726390750551,3.2078,2416.4,2416.1,1.19]
[1726390750753,3.2078,2416.4,2416.2,1.17646]
[1726390751052,3.2078,2416.4,2416.3,0.3766]
[1726390752939,1.19,2416.6,2416.3,0.3766]
[1726390753358,1.19,2416.6,2416.3,0.79035]
[1726390756352,1.19,2416.6,2416.4,0.41373]
[1726390756660,1.19,2416.6,2416.3,0.79034]
[1726390757449,5.162,2416.7,2416.3,0.79034]
[1726390757851,5.162,2416.7,2416.4,0.41372]
[1726390758252,5.162,2416.7,2416.5,0.3825]
[1726390759170,6.77970095,2416.7,2416.5,0.3825]
[1726390762361,5.58970095,2416.7,2416.5,0.3825]
[1726390762558,6.77970095,2416.7,2416.5,0.3825]
[1726390768254,6.77970095,2416.7,2416.3,0.79034]
[1726390768450,3.2078,2416.5,2416.4,0.90871908]
[1726390769057,3.2078,2416.5,2416.4,1.32244908]
[1726390769251,3.2078,2416.5,2416.4,0.80503]
[1726390769763,3.2078,2416.5,2416.4,1.32245023]
[1726390771366,4.3978,2416.5,2416.4,0.51742023]
[1726390771659,6.01550095,2416.5,2416.4,0.51742023]
[1726390773157,6.01550095,2416.5,2416.3,0.41374]
[1726390773363,0.3787,2416.4,2416.3,0.41374]
[1726390773561,0.3787,2416.4,2416.3,1.75905076]
[1726390773757,0.3787,2416.4,2416.3,2.16135076]
[1726390775566,0.3787,2416.4,2416.3,2.77204117]
[1726390776577,0.3787,2416.4,2416.3,2.16135076]
[1726390776862,0.3787,2416.4,2416.3,1.42672757]
[1726390777060,0.3787,2416.4,2416.3,2.77201668]
[1726390777460,0.3787,2416.4,2416.3,4.11730918]
[1726390779467,0.3787,2416.4,2416.3,2.77202007]
[1726390779868,0.7569,2416.4,2416.3,2.77202007]
[1726390780663,0.7569,2416.4,2416.3,2.77202193]
[1726390781567,0.7569,2416.4,2416.3,2.77202103]
[1726390781766,0.7569,2416.4,2416.3,2.7720217]
[1726390781964,0.7569,2416.4,2416.3,2.77202699]
[1726390782770,0.7569,2416.4,2416.3,2.77202377]
[1726390783073,0.7569,2416.4,2416.3,2.77202534]
[1726390783368,0.7569,2416.4,2416.3,2.77202096]
[1726390783868,0.7569,2416.4,2416.3,2.77202492]
[1726390784070,0.7569,2416.4,2416.3,1.42673242]
[1726390784265,0.7569,2416.4,2416.3,1.94415958]
[1726390784471,0.7569,2416.4,2416.3,2.77204304]
[1726390786063,0.7569,2416.4,2416.3,2.35830304]
[1726390786270,0.7569,2416.4,2416.3,2.77205304]
[1726390787575,0.7569,2416.4,2416.3,0.81605]
[1726390787873,0.7569,2416.4,2416.3,1.42674147]
[1726390788070,0.7569,2416.4,2416.3,2.77204003]
[1726390788973,0.7569,2416.4,2416.3,2.16136557]
[1726390789170,0.7569,2416.4,2416.3,2.7720619]
[1726390790574,2.37460095,2416.4,2416.3,2.3583119]
[1726390791168,2.37460095,2416.4,2416.3,3.39319345]
[1726390791371,2.37460095,2416.4,2416.3,2.3583119]
[1726390791569,2.37460095,2416.4,2416.3,3.39317383]
[1726390791770,2.37460095,2416.4,2416.3,2.3583119]
[1726390792574,2.37460095,2416.4,2416.3,3.39318015]
[1726390793169,0.7569,2416.4,2416.3,3.39318015]
[1726390793373,2.91383461,2416.4,2416.3,3.39318015]
[1726390793576,0.7569,2416.4,2416.3,3.39318015]
[1726390793774,2.91383461,2416.4,2416.3,3.39318015]
[1726390793978,0.7569,2416.4,2416.3,3.39318015]
[1726390794170,2.91383461,2416.4,2416.3,3.39318015]
[1726390794369,2.91383461,2416.4,2416.3,4.37030226]
[1726390794572,2.91383461,2416.4,2416.3,4.37027647]
[1726390794876,2.91383461,2416.4,2416.3,3.39316337]
[1726390795074,2.91383461,2416.4,2416.3,5.45592703]
[1726390795269,2.91383461,2416.4,2416.3,4.37027973]
[1726390795475,2.91383461,2416.4,2416.3,5.45592703]
[1726390796876,2.92101843,2416.4,2416.3,5.45592703]
[1726390797283,2.92101843,2416.4,2416.3,5.86692703]
[1726390797878,2.92104645,2416.4,2416.3,5.25624386]
[1726390798072,2.92104645,2416.4,2416.3,7.19202092]
[1726390798276,2.92104645,2416.4,2416.3,7.19203418]
[1726390798485,2.92104645,2416.4,2416.3,5.86700746]
[1726390798993,2.92104645,2416.4,2416.3,7.19203508]
[1726390799280,0.7569,2416.4,2416.3,5.86700746]
[1726390799586,2.92108385,2416.4,2416.3,5.86700746]
[1726390799778,0.7569,2416.4,2416.3,5.86700746]
[1726390800178,2.92108391,2416.4,2416.3,5.86700746]
[1726390800484,2.92105308,2416.4,2416.3,5.86700746]
[1726390800681,0.7569,2416.4,2416.3,5.86700746]
[1726390800877,1.9469,2416.4,2416.3,1.0856473]
[1726390801074,2.3234,2416.4,2416.3,1.0856473]
[1726390801272,2.3234,2416.4,2416.3,2.6734879]
[1726390801483,2.3234,2416.4,2416.3,4.22581615]
[1726390801682,4.48755766,2416.4,2416.3,5.05372455]
[1726390802380,2.54285766,2416.4,2416.3,5.05372455]
[1726390802579,2.16415766,2416.4,2416.3,7.31819654]
[1726390802786,2.16415766,2416.4,2416.3,6.45655762]
[1726390802985,2.16415766,2416.4,2416.3,6.7594604]
[1726390803179,7.49835995,2416.5,2416.3,5.43448003]
[1726390803379,7.10175995,2416.5,2416.4,1.95605907]
[1726390803683,7.10175995,2416.5,2416.4,2.34295907]
[1726390803989,7.10175995,2416.5,2416.4,1.73225115]
[1726390804287,11.24015995,2416.5,2416.4,1.95602716]
[1726390804599,7.10175995,2416.5,2416.4,1.95602716]
[1726390804788,11.24015995,2416.5,2416.4,1.95602716]
[1726390805291,7.10175995,2416.5,2416.4,1.95602716]
[1726390805584,11.24015995,2416.5,2416.4,1.95602716]
[1726390805787,8.03235995,2416.5,2416.4,1.34532765]
[1726390805984,7.10175995,2416.5,2416.4,1.95603067]
[1726390806488,7.10175995,2416.5,2416.4,1.95604472]
[1726390806890,11.24015995,2416.5,2416.4,1.95604472]
[1726390807589,8.03235995,2416.5,2416.4,1.95604472]
[1726390807787,7.10175995,2416.5,2416.4,1.95604885]
[1726390808181,7.10175995,2416.5,2416.3,2.23510278]
[1726390808579,7.10175995,2416.5,2416.4,1.95605671]
[1726390808983,11.24015995,2416.5,2416.4,1.95605671]
[1726390809497,7.10175995,2416.5,2416.4,1.95605671]
[1726390809713,3.89395995,2416.5,2416.4,1.95605671]
[1726390809901,7.10175995,2416.5,2416.4,1.95605671]
[1726390810490,3.89395995,2416.5,2416.4,1.95605671]
[1726390810692,7.10175995,2416.5,2416.4,1.95605671]
[1726390811093,11.24015995,2416.5,2416.4,1.95605671]
[1726390811601,11.24015995,2416.5,2416.3,2.23510278]
[1726390811805,7.10175995,2416.5,2416.3,2.23510278]
[1726390812003,7.10175995,2416.5,2416.4,1.95605868]
[1726390813707,11.24015995,2416.5,2416.4,1.95605868]
[1726390813900,7.10175995,2416.5,2416.4,1.95605868]
[1726390815605,3.89395995,2416.5,2416.4,1.95605868]
[1726390815906,7.10175995,2416.5,2416.4,1.95605868]
[1726390816403,7.10175995,2416.5,2416.4,2.9909393]
[1726390817002,5.91175995,2416.5,2416.4,2.9909393]
[1726390817202,5.91175995,2416.5,2416.4,4.07694208]
[1726390817409,3.2078,2416.5,2416.4,5.05406061]
[1726390819000,3.2078,2416.5,2416.4,2.63832597]
[1726390819197,3.2078,2416.5,2416.4,1.08600278]
[1726390819397,3.2078,2416.5,2416.4,2.67380297]
[1726390819694,4.68605995,2416.6,2416.4,7.6766057]
[1726390819897,4.68605995,2416.6,2416.4,9.99901464]
[1726390820095,4.68605995,2416.6,2416.4,6.82341282]
[1726390820297,4.68605995,2416.6,2416.5,0.61069082]
[1726390820500,7.89385995,2416.6,2416.5,0.61069082]
[1726390820894,7.89385995,2416.6,2416.5,1.95599279]
[1726390821205,5.1899,2416.6,2416.5,1.95599279]
[1726390823006,1.9821,2416.6,2416.5,1.34530197]
[1726390823303,5.1899,2416.6,2416.5,0.6107042]
[1726390823615,5.1899,2416.6,2416.5,1.95604389]
[1726390825104,1.9821,2416.6,2416.5,1.95604389]
[1726390825301,5.1899,2416.6,2416.5,1.95604389]
[1726390826902,5.1899,2416.6,2416.5,1.34533969]
[1726390827105,5.1899,2416.6,2416.5,0.61070875]
[1726390827106,1.9821,2416.6,2416.5,0.61070875]
[1726390827302,5.1899,2416.6,2416.5,1.95606479]
[1726390828100,1.9821,2416.6,2416.5,1.95606479]
[1726390828407,5.1899,2416.6,2416.5,1.95606479]
[1726390829803,1.9821,2416.6,2416.5,1.95606479]
[1726390830004,5.1899,2416.6,2416.5,1.95606479]
[1726390830411,1.9821,2416.6,2416.5,1.95606479]
[1726390830605,5.1899,2416.6,2416.5,1.95606606]
[1726390831008,1.9821,2416.6,2416.5,1.95606465]
[1726390831210,1.9821,2416.6,2416.5,1.95605349]
[1726390831211,5.6036,2416.6,2416.5,1.95605349]
[1726390831708,9.742,2416.6,2416.5,1.34534615]
[1726390832106,9.742,2416.6,2416.5,0.51744083]
[1726390834412,9.742,2416.6,2416.5,0.51746163]
[1726390836211,9.742,2416.6,2416.5,0.5741306]
[1726390837311,15.742,2416.6,2416.5,0.5741306]
[1726390837516,0.41375,2416.3,2416.1,0.096]
[1726390837715,4.03,2416.2,2415.8,6.01020278]
[1726390838011,4.03,2416.2,2415.9,2.67400535]
[1726390838012,3.35128085,2416.0,2415.9,2.67400535]
[1726390838322,3.35128085,2416.0,2415.9,3.45108127]
[1726390838621,3.35128085,2416.0,2415.9,3.30186908]
[1726390839215,3.35128085,2416.0,2415.9,3.70166908]
[1726390840015,3.35128085,2416.0,2415.9,1.83859038]
[1726390840614,1.19,2416.0,2415.9,1.83859038]
[1726390841010,3.35128085,2416.0,2415.9,1.83859038]
[1726390841214,1.19,2416.0,2415.9,1.83859038]
[1726390841409,1.19,2416.0,2415.9,1.83863378]
[1726390841619,1.19,2416.0,2415.9,0.3998]
[1726390841805,1.19,2416.0,2415.9,1.8386609]
[1726390842907,2.16128085,2416.1,2416.0,0.4138]
[1726390843114,2.16128085,2416.1,2416.0,1.43881632]
[1726390843325,2.16128085,2416.1,2416.0,5.99181632]
[1726390843527,4.82741557,2416.2,2416.1,0.41378]
[1726390843728,3.2078,2416.2,2416.1,5.3621762]
[1726390843916,3.2078,2416.2,2416.1,5.7502762]
[1726390844118,3.2078,2416.2,2416.1,3.68711736]
[1726390844323,5.23911557,2416.2,2416.1,2.26409632]
[1726390845211,5.23911557,2416.2,2416.1,1.43606288]
[1726390845212,4.82741557,2416.2,2416.1,1.43606288]
[1726390845613,4.82741557,2416.2,2416.1,2.26402317]
[1726390846218,3.2078,2416.2,2416.1,2.26402317]
[1726390849523,3.2078,2416.2,2416.1,2.7814848]
[1726390850927,3.2078,2416.2,2416.1,3.81637534]
[1726390851225,3.2078,2416.2,2416.1,4.79351642]
[1726390851425,3.2078,2416.2,2416.1,3.81637413]
[1726390851619,3.2078,2416.2,2416.1,5.87951683]
[1726390851929,3.2078,2416.2,2416.1,5.879504]
[1726390852220,3.2078,2416.2,2416.1,1.43599799]
[1726390852420,3.2078,2416.2,2416.1,0.82528]
[1726390852421,4.82741557,2416.2,2416.1,0.82528]
[1726390852623,4.82741557,2416.2,2416.1,2.78138564]
[1726390852822,4.82741557,2416.2,2416.1,5.1617129]
[1726390852823,3.2078,2416.2,2416.1,5.1617129]
[1726390853625,3.2078,2416.2,2416.1,5.161701]
[1726390854726,4.82741557,2416.2,2416.1,5.161701]
[1726390855518,1.61961557,2416.2,2416.1,5.161701]
[1726390855719,4.82741557,2416.2,2416.1,5.161701]
[1726390857734,3.2078,2416.2,2416.1,5.161701]
[1726390858132,4.82741557,2416.2,2416.1,5.161701]
[1726390859025,3.2078,2416.2,2416.1,5.161701]
[1726390859221,4.82741557,2416.2,2416.1,5.16167422]
[1726390859927,4.82741557,2416.2,2416.1,4.33375396]
[1726390860131,4.82741557,2416.2,2416.1,2.78141846]
[1726390860327,3.2078,2416.2,2416.1,6.92061846]
[1726390860632,4.82741557,2416.2,2416.1,6.92061846]
[1726390860932,3.2078,2416.2,2416.1,6.92061846]
[1726390861330,0.096,2416.3,2416.2,0.41376]
[1726390861538,1.61961557,2416.4,2416.2,9.57773137]
[1726390861719,1.61961557,2416.4,2416.3,2.36988846]
[1726390862030,5.29641557,2416.5,2416.3,2.77798846]
[1726390862233,5.20041557,2416.5,2416.4,2.35703846]
[1726390862638,5.20041557,2416.5,2416.4,2.77076846]
[1726390863026,5.2010512,2416.5,2416.4,2.77076846]
[1726390863247,3.5808,2416.5,2416.4,2.77076846]
[1726390863434,3.5808,2416.5,2416.4,2.16003971]
[1726390863731,5.20110326,2416.5,2416.4,2.77072407]
[1726390865234,5.20110326,2416.5,2416.4,2.16003971]
[1726390865533,5.20110326,2416.5,2416.4,2.77061119]
[1726390867229,5.61070326,2416.5,2416.4,2.77061119]
[1726390867833,5.61070326,2416.5,2416.4,2.15992289]
[1726390867834,5.9904,2416.5,2416.4,2.15992289]
[1726390868531,5.9904,2416.5,2416.4,2.77061348]
[1726390868532,7.61081713,2416.5,2416.4,2.77061348]
[1726390868836,5.9904,2416.5,2416.4,2.77061886]
[1726390869132,5.9904,2416.5,2416.4,2.15992827]
[1726390870431,5.9904,2416.5,2416.4,2.77062083]
[1726390871339,5.9904,2416.5,2416.4,2.15992827]
[1726390871536,5.9904,2416.5,2416.4,2.15993797]
[1726390871738,5.9904,2416.5,2416.4,2.7706328]
[1726390871739,7.61075235,2416.5,2416.4,2.7706328]
[1726390872137,7.61075235,2416.5,2416.4,0.81463]
[1726390872454,7.61075235,2416.5,2416.4,2.77061432]
[1726390872738,7.61075235,2416.5,2416.4,1.42531876]
[1726390873042,5.2078,2416.5,2416.4,2.77061217]
[1726390873343,5.2078,2416.5,2416.4,3.80541183]
[1726390873639,5.2078,2416.5,2416.4,2.77061217]
[1726390873850,5.2078,2416.5,2416.4,3.80541348]
[1726390874237,5.2078,2416.5,2416.4,2.77061217]
[1726390875840,5.2078,2416.5,2416.4,2.77056591]
[1726390879144,2.0,2416.5,2416.4,2.77056591]
[1726390879349,5.2078,2416.5,2416.4,1.42531876]
[1726390879546,5.2078,2416.5,2416.4,2.77055295]
[1726390879746,5.2078,2416.5,2416.4,3.50513054]
[1726390879949,5.2078,2416.5,2416.4,4.1158034]
[1726390880150,5.2078,2416.5,2416.4,5.46105367]
[1726390880357,5.2078,2416.5,2416.4,2.77055313]
[1726390882145,5.2078,2416.5,2416.4,0.81463]
[1726390882353,5.2078,2416.5,2416.4,2.770548]
[1726390882652,2.0,2416.5,2416.4,2.770548]
[1726390882856,5.2078,2416.5,2416.4,2.770548]
[1726390883153,5.2078,2416.5,2416.4,1.42530139]
[1726390883346,5.2078,2416.5,2416.4,2.77054505]
[1726390883740,5.2078,2416.5,2416.4,4.11578562]
[1726390885852,5.2078,2416.5,2416.4,5.20030337]
[1726390886248,5.2078,2416.5,2416.4,7.21207634]
[1726390886449,5.2078,2416.5,2416.4,3.24439316]
[1726390886749,5.2078,2416.5,2416.4,5.15041994]
[1726390887257,5.2078,2416.5,2416.4,4.11568146]
[1726390887759,5.5866,2416.5,2416.4,3.71478146]
[1726390888452,7.20678787,2416.5,2416.4,3.71478146]
[1726390890153,7.20678787,2416.5,2416.4,3.10413544]
[1726390890354,7.20678787,2416.5,2416.4,3.71491396]
[1726390890659,5.5866,2416.5,2416.4,2.36966855]
[1726390891156,5.9942,2416.5,2416.4,2.36966855]
[1726390893562,5.9942,2416.5,2416.4,3.45385099]
[1726390893763,5.9942,2416.5,2416.4,2.36964949]
[1726390893961,5.9942,2416.5,2416.4,1.4979315]
[1726390894165,5.9942,2416.5,2416.4,2.10860202]
[1726390894360,5.9942,2416.5,2416.4,3.45384553]
[1726390894666,5.9942,2416.5,2416.4,4.4886492]
[1726390895381,5.9942,2416.5,2416.4,5.4657226]
[1726390895556,5.9942,2416.5,2416.4,5.46572262]
[1726390895756,5.9942,2416.5,2416.4,4.4886492]
[1726390895958,5.9942,2416.5,2416.4,5.46572237]
[1726390896154,5.9942,2416.5,2416.4,5.46572208]
[1726390898964,5.9942,2416.5,2416.4,6.79046227]
[1726390900172,2.7864,2416.5,2416.4,6.79046227]
[1726390900466,5.9942,2416.5,2416.4,6.79046227]
[1726390900972,5.9942,2416.5,2416.4,4.41039503]
[1726390901162,2.0,2416.5,2416.4,11.47090567]
[1726390901561,2.0,2416.5,2416.4,12.66090567]
[1726390901770,2.0,2416.5,2416.4,13.88216932]
[1726390902074,2.0,2416.5,2416.4,14.94166353]
[1726390902383,2.0,2416.5,2416.4,18.06297106]
[1726390902573,1.37918959,2416.5,2416.4,18.06297106]
[1726390902763,1.37918959,2416.5,2416.4,17.54557761]
[1726390902965,1.37918959,2416.5,2416.4,18.06290125]
[1726390903276,1.37918959,2416.5,2416.4,17.54557761]
[1726390903567,1.37918959,2416.5,2416.4,18.05510088]
[1726390904567,1.37918959,2416.5,2416.4,18.0548848]
[1726390904966,1.37918959,2416.5,2416.4,14.6861252]
[1726390905171,1.37918959,2416.5,2416.4,15.15775907]
[1726390905470,1.37918959,2416.5,2416.4,18.05489012]
[1726390907073,1.37918959,2416.5,2416.4,18.05480076]
[1726390908366,1.37918959,2416.5,2416.4,17.58314388]
[1726390908571,1.37918959,2416.5,2416.4,18.05473816]
[1726390909163,1.37918959,2416.5,2416.4,18.05474214]
[1726390910175,1.37918959,2416.5,2416.4,18.05472277]
[1726390910474,1.37918959,2416.5,2416.4,17.53740324]
[1726390910676,1.37918959,2416.5,2416.4,18.05473698]
[1726390911876,1.37918959,2416.5,2416.4,18.05376812]
[1726390912078,1.37918959,2416.5,2416.4,17.53643438]
[1726390912277,1.37918959,2416.5,2416.4,18.0537482]
[1726390912771,1.37918959,2416.5,2416.4,18.05375491]
[1726390913769,1.37918959,2416.5,2416.4,15.36803137]
[1726390914170,1.37918959,2416.5,2416.4,15.88535057]
[1726390914379,1.37918959,2416.5,2416.4,15.36803137]
[1726390914577,1.37918959,2416.5,2416.4,18.05421997]
[1726390915075,1.37918959,2416.5,2416.4,15.8852554]
[1726390915280,1.37918959,2416.5,2416.4,12.98818037]
[1726390915477,1.37918959,2416.5,2416.4,15.88511912]
[1726390915782,1.37918959,2416.5,2416.4,20.43357711]
[1726390915972,1.37918959,2416.5,2416.4,20.43354203]
[1726390916172,1.37918959,2416.5,2416.4,20.95085582]
[1726390916571,1.37918959,2416.5,2416.4,16.46784839]
[1726390916872,1.37918959,2416.5,2416.4,18.26924882]
[1726390917666,1.37918959,2416.5,2416.4,22.98141926]
[1726390918579,1.37918959,2416.5,2416.4,19.70112563]
[1726390918777,1.37918959,2416.5,2416.4,20.60186894]
[1726390918976,1.37918959,2416.5,2416.4,23.4988657]
[1726390919282,1.37918959,2416.5,2416.4,22.98154485]
[1726390919480,1.37918959,2416.5,2416.4,25.15026747]
[1726390919782,1.37918959,2416.5,2416.4,22.98154485]
[1726390920371,1.37918959,2416.5,2416.4,20.084543]
[1726390920667,1.37918959,2416.5,2416.4,20.60160645]
[1726390920874,1.37918959,2416.5,2416.4,20.08428997]
[1726390921082,1.37918959,2416.5,2416.4,16.80393566]
[1726390921276,1.37918959,2416.5,2416.4,19.8732711]
[1726390921572,1.37918959,2416.5,2416.4,20.08421539]
[1726390921771,1.37918959,2416.5,2416.4,22.15345722]
[1726390921978,1.37918959,2416.5,2416.4,22.98114991]
[1726390922176,1.37918959,2416.5,2416.4,23.49848808]
[1726390922374,1.37918959,2416.5,2416.4,25.66706202]
[1726390922683,1.37918959,2416.5,2416.4,19.86292598]
[1726390922977,1.37918959,2416.5,2416.4,20.26827957]
[1726390923684,1.37918959,2416.5,2416.4,19.07827957]
[1726390923685,1.77728959,2416.5,2416.4,19.07827957]
[1726390924683,1.77728959,2416.5,2416.4,17.75505795]
[1726390924984,1.77728959,2416.5,2416.4,15.11115188]
[1726390925179,1.77728959,2416.5,2416.4,16.69879331]
[1726390925580,1.77728959,2416.5,2416.4,19.0786459]
[1726390926083,1.77728959,2416.5,2416.4,16.69878483]
[1726390926281,1.77728959,2416.5,2416.4,19.07861743]
[1726390926486,1.77728959,2416.5,2416.4,22.67972495]
[1726390926785,1.77728959,2416.5,2416.4,22.67972432]
[1726390926978,1.77728959,2416.5,2416.4,21.4584669]
[1726390927179,1.77728959,2416.5,2416.4,22.67972621]
[1726390927885,1.77728959,2416.5,2416.4,21.4584669]
[1726390928088,1.77728959,2416.5,2416.4,17.49110302]
[1726390928273,1.77728959,2416.5,2416.4,22.67970224]
[1726390928476,1.77728959,2416.5,2416.4,12.20248083]
[1726390928686,1.77728959,2416.5,2416.4,16.2089495]
[1726390929389,1.77728959,2416.5,2416.4,16.20893575]
[1726390929586,1.77728959,2416.5,2416.4,16.20899751]
[1726390929886,1.77728959,2416.5,2416.4,14.58232711]
[1726390930083,1.77728959,2416.5,2416.4,16.20902925]
[1726390930282,1.77728959,2416.5,2416.4,14.58232711]
[1726390930486,1.77728959,2416.5,2416.4,6.92577857]
[1726390930987,1.77728959,2416.5,2416.4,8.5525094]
[1726390931181,1.77728959,2416.5,2416.4,8.55250252]
[1726390931488,1.77728959,2416.5,2416.4,8.55251135]
[1726390932285,1.77728959,2416.5,2416.4,8.55252215]
[1726390934589,1.77728959,2416.5,2416.4,6.92578937]
[1726390934886,1.77728959,2416.5,2416.4,3.36413008]
[1726390935094,1.77728959,2416.5,2416.4,4.54599732]
[1726390935280,1.77728959,2416.5,2416.4,2.56490537]
[1726390935487,1.77728959,2416.5,2416.4,6.92577879]
[1726390935791,1.77728959,2416.5,2416.4,9.30556253]
[1726390936983,1.77728959,2416.5,2416.4,10.93281439]
[1726390937195,1.77728959,2416.5,2416.4,9.30556253]
[1726390938378,1.77728959,2416.5,2416.4,4.11693234]
[1726390938579,1.77728959,2416.5,2416.4,7.4737444]
[1726390938886,1.77728959,2416.5,2416.4,9.30561679]
[1726390939385,0.3981,2416.5,2416.4,4.11752282]
[1726390939590,0.3981,2416.5,2416.4,6.92638109]
[1726390939782,0.3981,2416.5,2416.4,9.30617777]
[1726390940583,0.3981,2416.5,2416.4,6.92640308]
[1726390941186,0.3981,2416.5,2416.4,9.61232118]
[1726390941388,0.3981,2416.5,2416.4,6.92640308]
[1726390941585,0.3981,2416.5,2416.4,9.61232118]
[1726390941786,0.3981,2416.5,2416.4,1.73774813]
[1726390941991,1.77728959,2416.5,2416.4,2.71474147]
[1726390942186,1.77728959,2416.5,2416.4,7.44373616]
[1726390942387,1.77728959,2416.5,2416.4,9.61230716]
[1726390942578,1.77728959,2416.5,2416.4,9.09496213]
[1726390942787,1.77728959,2416.5,2416.4,9.61230716]